[Event "January 9 Early 2024"]
[Site "https://www.chess.com"]
[Date "2024.01.11"]
[Round "11"]
[White "Korchmar, Vasiliy"]
[Black "Belov, Alexei"]
[Result "1-0"]
[Board "54"]
[TimeControl "180+1"]
[WhiteFideId "24131750"]
[BlackFideId "4128206"]
[WhiteElo "2723"]
[BlackElo "2570"]
[WhiteTeam "RUS"]
[BlackTeam "RUS"]
[WhiteClock "0:00:53"]
[BlackClock "0:00:10"]

1. e4 {[%clk 0:03:00]}  e6 {[%clk 0:02:59]} 2. d4 {[%clk 0:02:59]}  d5 {[%clk 0:03:00]} 3. exd5 {[%clk 0:02:56]}  exd5 {[%clk 0:02:59]} 4. Nf3 {[%clk 0:02:56]}  Nf6 {[%clk 0:02:59]} 5. h3 {[%clk 0:02:56]}  c5 {[%clk 0:02:59]} 6. Bb5+ {[%clk 0:02:54]}  Nc6 {[%clk 0:02:57]} 7. O-O {[%clk 0:02:54]}  Be7 {[%clk 0:02:54]} 8. dxc5 {[%clk 0:02:48]}  O-O {[%clk 0:02:53]} 9. Be3 {[%clk 0:02:42]}  Ne4 {[%clk 0:02:41]} 10. Nc3 {[%clk 0:02:35]}  Nxc3 {[%clk 0:02:36]} 11. bxc3 {[%clk 0:02:34]}  Qa5 {[%clk 0:02:31]} 12. Rb1 {[%clk 0:01:57]}  Qxc3 {[%clk 0:02:04]} 13. Qxd5 {[%clk 0:01:50]}  Be6 {[%clk 0:01:58]} 14. Qh5 {[%clk 0:01:40]}  g6 {[%clk 0:01:48]} 15. Qh6 {[%clk 0:01:40]}  Bxa2 {[%clk 0:01:25]} 16. Bxc6 {[%clk 0:01:35]}  Bxb1 {[%clk 0:01:19]} 17. Bd4 {[%clk 0:01:33]}  Qxd4 {[%clk 0:01:15]} 18. Nxd4 {[%clk 0:01:33]}  bxc6 {[%clk 0:01:14]} 19. Rxb1 {[%clk 0:01:30]}  Bxc5 {[%clk 0:01:12]} 20. Nf5 {[%clk 0:01:04]}  gxf5 {[%clk 0:01:12]} 21. Rb3 {[%clk 0:01:04]}  Bd4 {[%clk 0:00:43]} 22. Qxc6 {[%clk 0:00:58]}  Rac8 {[%clk 0:00:31]} 23. Qd5 {[%clk 0:00:58]}  Bg7 {[%clk 0:00:21]} 24. Qxf5 {[%clk 0:00:58]}  Kh8 {[%clk 0:00:16]} 25. Rb7 {[%clk 0:00:58]}  a6 {[%clk 0:00:13]} 26. Rxf7 {[%clk 0:00:56]}  Kg8 {[%clk 0:00:09]} 27. Rxf8+ {[%clk 0:00:54]}  Rxf8 {[%clk 0:00:09]} 28. Qe6+ {[%clk 0:00:54]}  Kh8 {[%clk 0:00:09]} 29. Qxa6 {[%clk 0:00:55]}  Bd4 {[%clk 0:00:10]} 30. Qe2 {[%clk 0:00:53]} 1-0

[Event "January 9 Early 2024"]
[Site "https://www.chess.com"]
[Date "2024.01.11"]
[Round "11"]
[White "Mendez Fortes, Eduardo Jesus"]
[Black "Akobian, Varuzhan"]
[Result "0-1"]
[Board "57"]
[TimeControl "180+1"]
[WhiteFideId "3502376"]
[BlackFideId "13300580"]
[WhiteElo "2557"]
[BlackElo "2724"]
[WhiteTeam "CUB"]
[BlackTeam "USA"]
[WhiteClock "0:00:12"]
[BlackClock "0:00:33"]

1. e4 {[%clk 0:03:00]}  d6 {[%clk 0:02:56]} 2. d4 {[%clk 0:03:01]}  Nf6 {[%clk 0:02:55]} 3. Nc3 {[%clk 0:03:01]}  c6 {[%clk 0:02:54]} 4. f4 {[%clk 0:03:01]}  Qa5 {[%clk 0:02:54]} 5. e5 {[%clk 0:02:55]}  Ne4 {[%clk 0:02:53]} 6. Bd3 {[%clk 0:02:52]}  Nxc3 {[%clk 0:02:39]} 7. Qd2 {[%clk 0:02:52]}  d5 {[%clk 0:02:33]} 8. bxc3 {[%clk 0:02:51]}  e6 {[%clk 0:02:33]} 9. Nf3 {[%clk 0:02:38]}  c5 {[%clk 0:02:32]} 10. O-O {[%clk 0:02:37]}  c4 {[%clk 0:02:31]} 11. Be2 {[%clk 0:02:37]}  Nd7 {[%clk 0:02:28]} 12. f5 {[%clk 0:02:31]}  exf5 {[%clk 0:02:27]} 13. Nh4 {[%clk 0:02:18]}  g6 {[%clk 0:02:23]} 14. g4 {[%clk 0:02:18]}  Be7 {[%clk 0:02:23]} 15. Qh6 {[%clk 0:02:13]}  Qxc3 {[%clk 0:02:16]} 16. Nf3 {[%clk 0:01:57]}  fxg4 {[%clk 0:01:35]} 17. Bd2 {[%clk 0:01:47]}  Qxc2 {[%clk 0:01:34]} 18. e6 {[%clk 0:00:30]}  fxe6 {[%clk 0:01:28]} 19. Nh4 {[%clk 0:00:17]}  Bxh4 {[%clk 0:01:18]} 20. Qg7 {[%clk 0:00:16]}  Rf8 {[%clk 0:01:16]} 21. Bh6 {[%clk 0:00:16]}  Bf6 {[%clk 0:00:39]} 22. Qxh7 {[%clk 0:00:14]}  Bxd4+ {[%clk 0:00:34]} 23. Kg2 {[%clk 0:00:10]}  Qxe2+ {[%clk 0:00:34]} 24. Kg3 {[%clk 0:00:11]}  Be5+ {[%clk 0:00:34]} 25. Kh4 {[%clk 0:00:11]}  Qxh2+ {[%clk 0:00:33]} 26. Kg5 {[%clk 0:00:12]}  Qh5# {[%clk 0:00:33]} 0-1

[Event "January 9 Early 2024"]
[Site "https://www.chess.com"]
[Date "2024.01.11"]
[Round "11"]
[White "Mikhailovsky, Vladimir"]
[Black "Lund, Gunnar"]
[Result "0-1"]
[Board "58"]
[TimeControl "180+1"]
[WhiteFideId "34105414"]
[BlackFideId "1520814"]
[WhiteElo "2805"]
[BlackElo "2675"]
[WhiteTeam "RUS"]
[BlackTeam "NOR"]
[WhiteClock "0:00:03"]
[BlackClock "0:01:00"]

1. e4 {[%clk 0:03:00]}  e6 {[%clk 0:02:57]} 2. d4 {[%clk 0:03:00]}  d5 {[%clk 0:02:57]} 3. e5 {[%clk 0:03:01]}  c5 {[%clk 0:02:58]} 4. c3 {[%clk 0:03:01]}  Nc6 {[%clk 0:02:58]} 5. Nf3 {[%clk 0:03:02]}  Bd7 {[%clk 0:02:59]} 6. Be2 {[%clk 0:03:02]}  f6 {[%clk 0:02:56]} 7. O-O {[%clk 0:03:01]}  fxe5 {[%clk 0:02:54]} 8. dxe5 {[%clk 0:02:55]}  Qc7 {[%clk 0:02:54]} 9. Re1 {[%clk 0:02:55]}  O-O-O {[%clk 0:02:52]} 10. Bf4 {[%clk 0:02:53]}  Nh6 {[%clk 0:02:53]} 11. Na3 {[%clk 0:02:40]}  a6 {[%clk 0:02:53]} 12. Nc2 {[%clk 0:02:35]}  Nf7 {[%clk 0:02:53]} 13. b4 {[%clk 0:02:32]}  c4 {[%clk 0:02:18]} 14. Ncd4 {[%clk 0:02:20]}  Rg8 {[%clk 0:02:12]} 15. Nxc6 {[%clk 0:02:07]}  Bxc6 {[%clk 0:02:10]} 16. Nd4 {[%clk 0:02:01]}  Bd7 {[%clk 0:02:08]} 17. Bg4 {[%clk 0:02:00]}  Re8 {[%clk 0:02:03]} 18. a4 {[%clk 0:01:48]}  b6 {[%clk 0:02:03]} 19. Qf3 {[%clk 0:00:46]}  g6 {[%clk 0:01:47]} 20. Be3 {[%clk 0:00:38]}  Nxe5 {[%clk 0:01:42]} 21. Qh3 {[%clk 0:00:31]}  Nxg4 {[%clk 0:01:43]} 22. Qxg4 {[%clk 0:00:32]}  e5 {[%clk 0:01:42]} 23. Qh4 {[%clk 0:00:23]}  exd4 {[%clk 0:01:41]} 24. Bxd4 {[%clk 0:00:24]}  Bd6 {[%clk 0:01:35]} 25. Qxh7 {[%clk 0:00:19]}  Bf5 {[%clk 0:01:35]} 26. Qh4 {[%clk 0:00:12]}  Kb7 {[%clk 0:01:33]} 27. h3 {[%clk 0:00:08]}  Be4 {[%clk 0:01:30]} 28. Re2 {[%clk 0:00:03]}  g5 {[%clk 0:01:30]} 29. Qh5 {[%clk 0:00:01]}  Qh7 {[%clk 0:01:17]} 30. Qxh7+ {[%clk 0:00:01]}  Bxh7 {[%clk 0:01:18]} 31. Rae1 {[%clk 0:00:01]}  Bg6 {[%clk 0:01:09]} 32. Re6 {[%clk 0:00:01]}  Bc7 {[%clk 0:01:02]} 33. Re7 {[%clk 0:00:01]}  Rxe7 {[%clk 0:01:00]} 34. Rxe7 {[%clk 0:00:02]}  Re8 {[%clk 0:01:01]} 35. Rg7 {[%clk 0:00:03]}  Re1# {[%clk 0:01:00]} 0-1

[Event "January 9 Early 2024"]
[Site "https://www.chess.com"]
[Date "2024.01.11"]
[Round "11"]
[White "Golubev, Mikhail"]
[Black "Shohat, Yotam"]
[Result "0-1"]
[Board "59"]
[TimeControl "180+1"]
[WhiteFideId "14100983"]
[BlackFideId "2813955"]
[WhiteElo "2611"]
[BlackElo "2471"]
[WhiteTeam "UKR"]
[BlackTeam "ISR"]
[WhiteClock "0:00:12"]
[BlackClock "0:01:15"]

1. e4 {[%clk 0:03:00]}  c5 {[%clk 0:02:58]} 2. Nf3 {[%clk 0:03:00]}  g6 {[%clk 0:02:59]} 3. d4 {[%clk 0:02:57]}  cxd4 {[%clk 0:03:00]} 4. Nxd4 {[%clk 0:02:57]}  Nc6 {[%clk 0:02:59]} 5. Nc3 {[%clk 0:02:57]}  Bg7 {[%clk 0:03:00]} 6. Be3 {[%clk 0:02:58]}  Nf6 {[%clk 0:03:00]} 7. Nxc6 {[%clk 0:02:56]}  bxc6 {[%clk 0:02:59]} 8. e5 {[%clk 0:02:56]}  Nd5 {[%clk 0:03:00]} 9. Nxd5 {[%clk 0:02:55]}  cxd5 {[%clk 0:03:01]} 10. Qxd5 {[%clk 0:02:55]}  Rb8 {[%clk 0:03:01]} 11. O-O-O {[%clk 0:02:55]}  Qc7 {[%clk 0:03:00]} 12. Bd4 {[%clk 0:01:57]}  O-O {[%clk 0:02:57]} 13. Qc5 {[%clk 0:01:48]}  Qxc5 {[%clk 0:02:52]} 14. Bxc5 {[%clk 0:01:49]}  Bxe5 {[%clk 0:02:53]} 15. b3 {[%clk 0:01:36]}  d6 {[%clk 0:02:46]} 16. Bxa7 {[%clk 0:01:35]}  Ra8 {[%clk 0:02:46]} 17. Bd4 {[%clk 0:01:36]}  Bxd4 {[%clk 0:02:40]} 18. Rxd4 {[%clk 0:01:36]}  Rxa2 {[%clk 0:02:40]} 19. Kb1 {[%clk 0:01:36]}  Ra7 {[%clk 0:02:37]} 20. Bb5 {[%clk 0:01:20]}  Bb7 {[%clk 0:02:33]} 21. f3 {[%clk 0:01:17]}  Rfa8 {[%clk 0:02:33]} 22. Ra4 {[%clk 0:01:06]}  Rxa4 {[%clk 0:02:28]} 23. Bxa4 {[%clk 0:01:07]}  d5 {[%clk 0:02:09]} 24. Re1 {[%clk 0:01:05]}  e6 {[%clk 0:02:05]} 25. Kb2 {[%clk 0:01:05]}  Kf8 {[%clk 0:02:03]} 26. f4 {[%clk 0:01:03]}  Ke7 {[%clk 0:02:01]} 27. g3 {[%clk 0:01:03]}  Kd6 {[%clk 0:02:01]} 28. Bb5 {[%clk 0:01:02]}  h5 {[%clk 0:01:56]} 29. h4 {[%clk 0:01:01]}  f6 {[%clk 0:01:52]} 30. Bd3 {[%clk 0:00:59]}  Rg8 {[%clk 0:01:49]} 31. c4 {[%clk 0:00:53]}  g5 {[%clk 0:01:47]} 32. hxg5 {[%clk 0:00:26]}  fxg5 {[%clk 0:01:46]} 33. Re5 {[%clk 0:00:25]}  h4 {[%clk 0:01:46]} 34. Rxg5 {[%clk 0:00:19]}  Rxg5 {[%clk 0:01:45]} 35. fxg5 {[%clk 0:00:20]}  hxg3 {[%clk 0:01:46]} 36. Bf1 {[%clk 0:00:18]}  dxc4 {[%clk 0:01:28]} 37. g6 {[%clk 0:00:18]}  Ke7 {[%clk 0:01:28]} 38. bxc4 {[%clk 0:00:17]}  g2 {[%clk 0:01:27]} 39. Bxg2 {[%clk 0:00:16]}  Bxg2 {[%clk 0:01:28]} 40. Kc3 {[%clk 0:00:16]}  Kf6 {[%clk 0:01:21]} 41. Kd4 {[%clk 0:00:12]}  e5+ {[%clk 0:01:15]} 0-1

[Event "January 9 Early 2024"]
[Site "https://www.chess.com"]
[Date "2024.01.11"]
[Round "11"]
[White "Hambleton, Aman"]
[Black "Salman, Ilhan Serhat"]
[Result "0-1"]
[Board "64"]
[TimeControl "180+1"]
[WhiteFideId "2606577"]
[BlackFideId "6361579"]
[WhiteElo "2724"]
[BlackElo "2523"]
[WhiteTeam "CAN"]
[BlackTeam "TUR"]
[WhiteClock "0:00:01"]
[BlackClock "0:00:23"]

1. d4 {[%clk 0:02:24]}  d5 {[%clk 0:02:58]} 2. Bf4 {[%clk 0:02:14]}  Bf5 {[%clk 0:02:57]} 3. c4 {[%clk 0:02:14]}  e6 {[%clk 0:02:55]} 4. Nc3 {[%clk 0:02:09]}  Nf6 {[%clk 0:02:55]} 5. Qb3 {[%clk 0:02:05]}  Nc6 {[%clk 0:02:42]} 6. e3 {[%clk 0:02:01]}  Bb4 {[%clk 0:02:29]} 7. Bg5 {[%clk 0:01:02]}  O-O {[%clk 0:02:24]} 8. cxd5 {[%clk 0:00:51]}  exd5 {[%clk 0:02:15]} 9. Nf3 {[%clk 0:00:44]}  h6 {[%clk 0:02:11]} 10. Bxf6 {[%clk 0:00:38]}  Qxf6 {[%clk 0:02:12]} 11. Qxd5 {[%clk 0:00:31]}  Rad8 {[%clk 0:02:12]} 12. Qb5 {[%clk 0:00:26]}  Rfe8 {[%clk 0:02:04]} 13. Be2 {[%clk 0:00:25]}  a6 {[%clk 0:01:44]} 14. Qxb7 {[%clk 0:00:20]}  Be4 {[%clk 0:01:39]} 15. Qxa6 {[%clk 0:00:08]}  Rd6 {[%clk 0:01:06]} 16. Qc4 {[%clk 0:00:02]}  Bd5 {[%clk 0:00:54]} 17. Qd3 {[%clk 0:00:02]}  Bxf3 {[%clk 0:00:47]} 18. gxf3 {[%clk 0:00:02]}  Nxd4 {[%clk 0:00:47]} 19. exd4 {[%clk 0:00:01]}  Rxd4 {[%clk 0:00:48]} 20. Qc2 {[%clk 0:00:01]}  Qxf3 {[%clk 0:00:35]} 21. Rg1 {[%clk 0:00:01]}  Rxe2+ {[%clk 0:00:28]} 22. Qxe2 {[%clk 0:00:01]}  Re4 {[%clk 0:00:23]} 0-1

[Event "January 9 Early 2024"]
[Site "https://www.chess.com"]
[Date "2024.01.11"]
[Round "11"]
[White "Radibratovic, Predrag"]
[Black "Kohler, Aran"]
[Result "0-1"]
[Board "65"]
[TimeControl "180+1"]
[WhiteFideId "902012"]
[BlackFideId "1002856"]
[WhiteElo "2490"]
[BlackElo "2292"]
[WhiteTeam "SRB"]
[BlackTeam "NED"]
[WhiteClock "0:01:29"]
[BlackClock "0:00:40"]

1. d4 {[%clk 0:03:00]}  Nf6 {[%clk 0:02:58]} 2. Bg5 {[%clk 0:02:59]}  c5 {[%clk 0:02:57]} 3. Bxf6 {[%clk 0:03:00]}  exf6 {[%clk 0:02:56]} 4. c3 {[%clk 0:03:00]}  cxd4 {[%clk 0:02:53]} 5. cxd4 {[%clk 0:03:00]}  d5 {[%clk 0:02:54]} 6. Nc3 {[%clk 0:02:58]}  Nc6 {[%clk 0:02:53]} 7. e3 {[%clk 0:02:58]}  Bb4 {[%clk 0:02:39]} 8. Ne2 {[%clk 0:02:55]}  O-O {[%clk 0:02:38]} 9. a3 {[%clk 0:02:55]}  Ba5 {[%clk 0:02:31]} 10. b4 {[%clk 0:02:54]}  Bc7 {[%clk 0:02:30]} 11. Qb3 {[%clk 0:02:54]}  Be6 {[%clk 0:02:29]} 12. g3 {[%clk 0:02:53]}  a5 {[%clk 0:02:21]} 13. b5 {[%clk 0:02:53]}  a4 {[%clk 0:02:20]} 14. Qa2 {[%clk 0:02:51]}  Na5 {[%clk 0:02:19]} 15. Nf4 {[%clk 0:02:48]}  Nb3 {[%clk 0:02:16]} 16. Rd1 {[%clk 0:02:47]}  Ba5 {[%clk 0:02:09]} 17. Ne2 {[%clk 0:02:47]}  Rc8 {[%clk 0:02:08]} 18. Qb2 {[%clk 0:02:46]}  Bg4 {[%clk 0:01:53]} 19. Rd3 {[%clk 0:02:32]}  Bf3 {[%clk 0:01:44]} 20. Rg1 {[%clk 0:02:32]}  Qc7 {[%clk 0:01:45]} 21. Bg2 {[%clk 0:02:30]}  Bxe2 {[%clk 0:01:43]} 22. Kxe2 {[%clk 0:02:30]}  Bxc3 {[%clk 0:01:42]} 23. Qc2 {[%clk 0:02:27]}  Ba5 {[%clk 0:01:40]} 24. Qxc7 {[%clk 0:02:27]}  Rxc7 {[%clk 0:01:40]} 25. Bxd5 {[%clk 0:02:28]}  Rc2+ {[%clk 0:01:40]} 26. Kf3 {[%clk 0:02:28]}  Nd2+ {[%clk 0:01:33]} 27. Kg2 {[%clk 0:02:26]}  b6 {[%clk 0:01:32]} 28. Bc6 {[%clk 0:02:21]}  Nb3 {[%clk 0:01:25]} 29. Bd5 {[%clk 0:02:14]}  Rc3 {[%clk 0:01:19]} 30. Rxc3 {[%clk 0:02:10]}  Bxc3 {[%clk 0:01:18]} 31. Rb1 {[%clk 0:02:10]}  Na5 {[%clk 0:01:05]} 32. Be4 {[%clk 0:02:06]}  g6 {[%clk 0:01:02]} 33. Bc2 {[%clk 0:02:05]}  Nb3 {[%clk 0:00:59]} 34. Bxb3 {[%clk 0:02:05]}  axb3 {[%clk 0:01:00]} 35. Rxb3 {[%clk 0:02:05]}  Ba5 {[%clk 0:01:01]} 36. d5 {[%clk 0:02:02]}  Rc8 {[%clk 0:00:59]} 37. d6 {[%clk 0:02:01]}  Kf8 {[%clk 0:00:58]} 38. Rd3 {[%clk 0:02:00]}  Rd8 {[%clk 0:00:58]} 39. e4 {[%clk 0:01:59]}  h5 {[%clk 0:00:55]} 40. f4 {[%clk 0:01:59]}  Ke8 {[%clk 0:00:53]} 41. e5 {[%clk 0:01:58]}  fxe5 {[%clk 0:00:53]} 42. fxe5 {[%clk 0:01:58]}  Kd7 {[%clk 0:00:54]} 43. Kf3 {[%clk 0:01:58]}  Ke6 {[%clk 0:00:54]} 44. Ke4 {[%clk 0:01:58]}  f6 {[%clk 0:00:52]} 45. exf6 {[%clk 0:01:57]}  Rxd6 {[%clk 0:00:51]} 46. Rf3 {[%clk 0:01:54]}  Kf7 {[%clk 0:00:50]} 47. Ke5 {[%clk 0:01:53]}  Re6+ {[%clk 0:00:51]} 48. Kd5 {[%clk 0:01:53]}  Rxf6 {[%clk 0:00:51]} 49. Re3 {[%clk 0:01:50]}  Rf5+ {[%clk 0:00:52]} 50. Kc6 {[%clk 0:01:50]}  Rc5+ {[%clk 0:00:52]} 51. Kd6 {[%clk 0:01:50]}  Kf6 {[%clk 0:00:51]} 52. Rf3+ {[%clk 0:01:49]}  Kg5 {[%clk 0:00:51]} 53. Rb3 {[%clk 0:01:48]}  Kg4 {[%clk 0:00:50]} 54. a4 {[%clk 0:01:45]}  g5 {[%clk 0:00:50]} 55. Ke6 {[%clk 0:01:45]}  Kh3 {[%clk 0:00:49]} 56. Kf6 {[%clk 0:01:44]}  g4 {[%clk 0:00:48]} 57. Rb2 {[%clk 0:01:43]}  Rd5 {[%clk 0:00:44]} 58. Kg6 {[%clk 0:01:42]}  h4 {[%clk 0:00:43]} 59. gxh4 {[%clk 0:01:42]}  Kxh4 {[%clk 0:00:43]} 60. Rg2 {[%clk 0:01:33]}  Rd2 {[%clk 0:00:42]} 61. Rxd2 {[%clk 0:01:31]}  Bxd2 {[%clk 0:00:42]} 62. Kf5 {[%clk 0:01:31]}  Kh3 {[%clk 0:00:41]} 63. Ke4 {[%clk 0:01:29]}  Kxh2 {[%clk 0:00:40]} 0-1

[Event "January 9 Early 2024"]
[Site "https://www.chess.com"]
[Date "2024.01.11"]
[Round "11"]
[White "Goncalves, Samuel Jesus P"]
[Black "Yurasov, Matfey"]
[Result "0-1"]
[Board "67"]
[TimeControl "180+1"]
[WhiteFideId "1945130"]
[BlackFideId "55617603"]
[WhiteElo "2421"]
[BlackElo "2543"]
[WhiteTeam "POR"]
[BlackTeam "FID"]
[WhiteClock "0:00:03"]
[BlackClock "0:01:11"]

1. e4 {[%clk 0:03:00]}  e5 {[%clk 0:02:59]} 2. Nf3 {[%clk 0:03:00]}  Nf6 {[%clk 0:02:59]} 3. Nc3 {[%clk 0:02:57]}  Bb4 {[%clk 0:02:58]} 4. a3 {[%clk 0:02:50]}  Ba5 {[%clk 0:02:53]} 5. Be2 {[%clk 0:02:43]}  O-O {[%clk 0:02:49]} 6. b4 {[%clk 0:02:43]}  Bb6 {[%clk 0:02:46]} 7. O-O {[%clk 0:02:43]}  d6 {[%clk 0:02:45]} 8. d3 {[%clk 0:02:31]}  h6 {[%clk 0:02:44]} 9. Na4 {[%clk 0:02:25]}  Be6 {[%clk 0:02:43]} 10. Nxb6 {[%clk 0:02:24]}  axb6 {[%clk 0:02:43]} 11. c4 {[%clk 0:02:24]}  Nbd7 {[%clk 0:02:42]} 12. Bb2 {[%clk 0:02:19]}  c6 {[%clk 0:02:39]} 13. Qc2 {[%clk 0:02:14]}  b5 {[%clk 0:02:37]} 14. cxb5 {[%clk 0:02:09]}  cxb5 {[%clk 0:02:38]} 15. d4 {[%clk 0:02:08]}  Rc8 {[%clk 0:02:36]} 16. Qb1 {[%clk 0:02:06]}  exd4 {[%clk 0:02:33]} 17. Nxd4 {[%clk 0:02:07]}  Bc4 {[%clk 0:02:34]} 18. Rd1 {[%clk 0:01:56]}  Ne5 {[%clk 0:02:32]} 19. h3 {[%clk 0:01:09]}  Bxe2 {[%clk 0:02:29]} 20. Nxe2 {[%clk 0:01:10]}  Nc4 {[%clk 0:02:30]} 21. Nd4 {[%clk 0:00:56]}  Nxb2 {[%clk 0:02:26]} 22. Qxb2 {[%clk 0:00:57]}  Nxe4 {[%clk 0:02:26]} 23. Nf5 {[%clk 0:00:46]}  Qg5 {[%clk 0:02:02]} 24. Nxd6 {[%clk 0:00:26]}  Nxd6 {[%clk 0:02:02]} 25. Rxd6 {[%clk 0:00:27]}  Rc4 {[%clk 0:01:52]} 26. Rad1 {[%clk 0:00:26]}  Rfc8 {[%clk 0:01:51]} 27. R6d5 {[%clk 0:00:25]}  Qf4 {[%clk 0:01:46]} 28. Qe2 {[%clk 0:00:16]}  Rc1 {[%clk 0:01:37]} 29. g3 {[%clk 0:00:14]}  Qf6 {[%clk 0:01:32]} 30. Kh2 {[%clk 0:00:13]}  R8c2 {[%clk 0:01:28]} 31. Rd8+ {[%clk 0:00:09]}  Kh7 {[%clk 0:01:28]} 32. R8d2 {[%clk 0:00:09]}  Rxd2 {[%clk 0:01:23]} 33. Rxd2 {[%clk 0:00:07]}  Qc6 {[%clk 0:01:21]} 34. f3 {[%clk 0:00:04]}  Qb6 {[%clk 0:01:19]} 35. Qg2 {[%clk 0:00:03]}  Qe3 {[%clk 0:01:18]} 36. Rf2 {[%clk 0:00:03]}  Qxa3 {[%clk 0:01:18]} 37. g4 {[%clk 0:00:04]}  Qxb4 {[%clk 0:01:18]} 38. Qg3 {[%clk 0:00:04]}  Qe1 {[%clk 0:01:16]} 39. Qg2 {[%clk 0:00:01]}  b4 {[%clk 0:01:13]} 40. f4 {[%clk 0:00:02]}  b3 {[%clk 0:01:13]} 41. Re2 {[%clk 0:00:03]}  Qxe2 {[%clk 0:01:10]} 42. Qxe2 {[%clk 0:00:03]}  Rc2 {[%clk 0:01:11]} 0-1

[Event "January 9 Early 2024"]
[Site "https://www.chess.com"]
[Date "2024.01.11"]
[Round "11"]
[White "Tifferet, Shakked"]
[Black "Timerkhanov, Alexander"]
[Result "0-1"]
[Board "68"]
[TimeControl "180+1"]
[WhiteFideId "2811529"]
[BlackFideId "24177938"]
[WhiteElo "2490"]
[BlackElo "2664"]
[WhiteTeam "ISR"]
[BlackTeam "RUS"]
[WhiteClock "0:00:03"]
[BlackClock "0:01:36"]

1. Nc3 {[%clk 0:03:00]}  d5 {[%clk 0:02:59]} 2. d4 {[%clk 0:03:01]}  c6 {[%clk 0:02:58]} 3. e4 {[%clk 0:02:57]}  dxe4 {[%clk 0:02:59]} 4. Nxe4 {[%clk 0:02:58]}  Nf6 {[%clk 0:02:59]} 5. Nxf6+ {[%clk 0:02:56]}  exf6 {[%clk 0:03:00]} 6. c3 {[%clk 0:02:55]}  Bd6 {[%clk 0:03:01]} 7. Bd3 {[%clk 0:02:52]}  O-O {[%clk 0:03:01]} 8. Ne2 {[%clk 0:02:52]}  Re8 {[%clk 0:03:02]} 9. O-O {[%clk 0:02:51]}  Nd7 {[%clk 0:02:59]} 10. Bf4 {[%clk 0:02:51]}  Nf8 {[%clk 0:02:56]} 11. Bxd6 {[%clk 0:02:45]}  Qxd6 {[%clk 0:02:57]} 12. Qd2 {[%clk 0:02:39]}  Ng6 {[%clk 0:02:55]} 13. Rfe1 {[%clk 0:02:18]}  Bd7 {[%clk 0:02:53]} 14. Ng3 {[%clk 0:02:10]}  Nh4 {[%clk 0:02:51]} 15. Rxe8+ {[%clk 0:02:09]}  Rxe8 {[%clk 0:02:50]} 16. Re1 {[%clk 0:02:09]}  Rxe1+ {[%clk 0:02:50]} 17. Qxe1 {[%clk 0:02:10]}  f5 {[%clk 0:02:39]} 18. f3 {[%clk 0:01:45]}  g5 {[%clk 0:02:30]} 19. Qe5 {[%clk 0:01:17]}  Qxe5 {[%clk 0:02:22]} 20. dxe5 {[%clk 0:01:18]}  Be6 {[%clk 0:02:22]} 21. a4 {[%clk 0:01:15]}  b6 {[%clk 0:02:17]} 22. b4 {[%clk 0:01:06]}  h6 {[%clk 0:02:15]} 23. a5 {[%clk 0:01:02]}  f4 {[%clk 0:02:11]} 24. Ne4 {[%clk 0:00:34]}  Ng6 {[%clk 0:02:08]} 25. Nf6+ {[%clk 0:00:28]}  Kg7 {[%clk 0:02:08]} 26. Nh5+ {[%clk 0:00:22]}  Kf8 {[%clk 0:01:51]} 27. Bxg6 {[%clk 0:00:22]}  fxg6 {[%clk 0:01:52]} 28. Nf6 {[%clk 0:00:22]}  Ke7 {[%clk 0:01:52]} 29. Kf2 {[%clk 0:00:20]}  Bc4 {[%clk 0:01:50]} 30. g3 {[%clk 0:00:19]}  Ke6 {[%clk 0:01:49]} 31. gxf4 {[%clk 0:00:17]}  gxf4 {[%clk 0:01:49]} 32. axb6 {[%clk 0:00:15]}  axb6 {[%clk 0:01:49]} 33. Ne8 {[%clk 0:00:07]}  Kxe5 {[%clk 0:01:46]} 34. h3 {[%clk 0:00:06]}  Bf7 {[%clk 0:01:44]} 35. Nc7 {[%clk 0:00:05]}  Kd6 {[%clk 0:01:44]} 36. Na8 {[%clk 0:00:06]}  b5 {[%clk 0:01:41]} 37. Ke2 {[%clk 0:00:04]}  Bd5 {[%clk 0:01:41]} 38. Kf2 {[%clk 0:00:02]}  c5 {[%clk 0:01:36]} 39. Nb6 {[%clk 0:00:01]}  cxb4 {[%clk 0:01:36]} 40. cxb4 {[%clk 0:00:02]}  Bb7 {[%clk 0:01:35]} 41. Ke2 {[%clk 0:00:02]}  Kc6 {[%clk 0:01:35]} 42. h4 {[%clk 0:00:01]}  Kxb6 {[%clk 0:01:35]} 43. h5 {[%clk 0:00:01]}  gxh5 {[%clk 0:01:36]} 44. Kf2 {[%clk 0:00:02]}  Bd5 {[%clk 0:01:36]} 45. Kg2 {[%clk 0:00:02]}  Kc6 {[%clk 0:01:36]} 46. Kh3 {[%clk 0:00:03]}  Bxf3 {[%clk 0:01:36]} 47. Kh4 {[%clk 0:00:04]}  Bd5 {[%clk 0:01:32]} 48. Kh3 {[%clk 0:00:04]}  f3 {[%clk 0:01:33]} 49. Kg3 {[%clk 0:00:04]}  Kd6 {[%clk 0:01:34]} 50. Kf2 {[%clk 0:00:04]}  Ke5 {[%clk 0:01:34]} 51. Kg3 {[%clk 0:00:05]}  Kd4 {[%clk 0:01:35]} 52. Kh4 {[%clk 0:00:06]}  Ke3 {[%clk 0:01:35]} 53. Kg3 {[%clk 0:00:07]}  f2 {[%clk 0:01:35]} 54. Kh2 {[%clk 0:00:06]}  f1=Q {[%clk 0:01:35]} 55. Kg3 {[%clk 0:00:05]}  Qg2+ {[%clk 0:01:35]} 56. Kh4 {[%clk 0:00:03]}  Qg4# {[%clk 0:01:36]} 0-1

[Event "January 9 Early 2024"]
[Site "https://www.chess.com"]
[Date "2024.01.11"]
[Round "11"]
[White "Ljukin, Sergei"]
[Black "Biriukov, Ilja"]
[Result "1-0"]
[Board "73"]
[TimeControl "180+1"]
[WhiteFideId "14102200"]
[BlackFideId "4113373"]
[WhiteElo "2498"]
[BlackElo "2238"]
[WhiteTeam "UKR"]
[BlackTeam "RUS"]
[WhiteClock "0:00:12"]
[BlackClock "0:00:23"]

1. e4 {[%clk 0:03:00]}  e6 {[%clk 0:02:58]} 2. d4 {[%clk 0:03:00]}  d5 {[%clk 0:02:59]} 3. Nc3 {[%clk 0:03:01]}  Bb4 {[%clk 0:02:58]} 4. e5 {[%clk 0:03:00]}  c5 {[%clk 0:02:57]} 5. a3 {[%clk 0:03:01]}  cxd4 {[%clk 0:02:57]} 6. axb4 {[%clk 0:03:00]}  dxc3 {[%clk 0:02:56]} 7. Qg4 {[%clk 0:03:00]}  Ne7 {[%clk 0:02:55]} 8. Qxg7 {[%clk 0:03:00]}  Rg8 {[%clk 0:02:54]} 9. Qxh7 {[%clk 0:03:00]}  Qc7 {[%clk 0:02:54]} 10. Nf3 {[%clk 0:03:00]}  Nbc6 {[%clk 0:02:52]} 11. bxc3 {[%clk 0:02:11]}  Nxe5 {[%clk 0:02:42]} 12. Bd2 {[%clk 0:02:11]}  Nc4 {[%clk 0:02:28]} 13. Bg5 {[%clk 0:02:03]}  Nd6 {[%clk 0:01:40]} 14. Bxe7 {[%clk 0:00:54]}  Qxc3+ {[%clk 0:01:38]} 15. Ke2 {[%clk 0:00:54]}  Qxa1 {[%clk 0:01:08]} 16. Bxd6 {[%clk 0:00:51]}  Rh8 {[%clk 0:01:01]} 17. Qd3 {[%clk 0:00:37]}  Bd7 {[%clk 0:01:00]} 18. Kd2 {[%clk 0:00:20]}  a6 {[%clk 0:00:50]} 19. Be5 {[%clk 0:00:19]}  Qa4 {[%clk 0:00:39]} 20. Bxh8 {[%clk 0:00:18]}  O-O-O {[%clk 0:00:38]} 21. Bc3 {[%clk 0:00:17]}  Bb5 {[%clk 0:00:32]} 22. Qd4 {[%clk 0:00:16]}  f6 {[%clk 0:00:30]} 23. Bxb5 {[%clk 0:00:15]}  axb5 {[%clk 0:00:30]} 24. Qxf6 {[%clk 0:00:13]}  Kb8 {[%clk 0:00:23]} 25. Ra1 {[%clk 0:00:12]} 1-0